[Event "Early-Titled-Tuesday-Blitz-October-03-2023"]
[Site "Chess.com"]
[Date "2023.10.03"]
[Round "7"]
[White "AsaHoffmann"]
[Black "tetrix83"]
[Result "0-1"]
[WhiteElo "2390"]
[BlackElo "2619"]
[TimeControl "180+1"]
[EndTime "9:19:11 PDT"]
[Termination "tetrix83 won on time"]

1. d4 {[%clk 0:02:56.5]} 1... Nf6 {[%clk 0:02:58]} 2. Bg5 {[%clk 0:02:53.5]}
2... c5 {[%clk 0:02:57.6]} 3. d5 {[%clk 0:02:52.9]} 3... d6 {[%clk 0:02:57.2]}
4. Nc3 {[%clk 0:02:52.4]} 4... h6 {[%clk 0:02:51.9]} 5. Bh4 {[%clk 0:02:51.7]}
5... a6 {[%clk 0:02:49.5]} 6. a4 {[%clk 0:02:23.5]} 6... e5 {[%clk 0:02:43.3]}
7. dxe6 {[%clk 0:02:15.5]} 7... Bxe6 {[%clk 0:02:42.6]} 8. e4 {[%clk 0:02:15]}
8... Be7 {[%clk 0:02:41.6]} 9. Bg3 {[%clk 0:02:07.9]} 9... O-O {[%clk
0:02:38.2]} 10. f4 {[%clk 0:02:07.5]} 10... Re8 {[%clk 0:02:21.7]} 11. f5 {[%clk
0:02:04.5]} 11... Bd7 {[%clk 0:02:15.9]} 12. Be2 {[%clk 0:02:02.4]} 12... Bc6
{[%clk 0:02:15.5]} 13. Bf3 {[%clk 0:01:57.6]} 13... Qb6 {[%clk 0:02:10.8]} 14.
Nge2 {[%clk 0:01:53.4]} 14... Nbd7 {[%clk 0:01:56.4]} 15. O-O {[%clk 0:01:52.7]}
15... Rad8 {[%clk 0:01:48.7]} 16. Qd2 {[%clk 0:01:28.4]} 16... Bf8 {[%clk
0:01:46.9]} 17. Nd5 {[%clk 0:01:18.5]} 17... Bxd5 {[%clk 0:01:25.6]} 18. exd5
{[%clk 0:01:17.8]} 18... Ne5 {[%clk 0:01:23.6]} 19. Nc3 {[%clk 0:01:08.4]} 19...
Nc4 {[%clk 0:01:20.9]} 20. Qd3 {[%clk 0:00:56.6]} 20... Nxb2 {[%clk 0:01:16.1]}
21. Rfb1 {[%clk 0:00:52.2]} 21... c4+ {[%clk 0:01:12.4]} 22. Bf2 {[%clk
0:00:49.7]} 22... Qxf2+ {[%clk 0:01:09.7]} 23. Kxf2 {[%clk 0:00:49.1]} 23...
cxd3 {[%clk 0:01:07.3]} 24. Rxb2 {[%clk 0:00:48.9]} 24... dxc2 {[%clk
0:01:06.1]} 25. Rxc2 {[%clk 0:00:48.7]} 25... Rc8 {[%clk 0:01:06.2]} 26. Rac1
{[%clk 0:00:43.5]} 26... Rc4 {[%clk 0:00:59.2]} 27. Ne2 {[%clk 0:00:15]} 27...
Rxa4 {[%clk 0:00:57.5]} 28. Rc7 {[%clk 0:00:14]} 28... b5 {[%clk 0:00:55.2]} 29.
R1c6 {[%clk 0:00:12.2]} 29... Ra2 {[%clk 0:00:47.5]} 30. h3 {[%clk 0:00:11.8]}
30... Ne4+ {[%clk 0:00:46.8]} 31. Bxe4 {[%clk 0:00:11]} 31... Rxe4 {[%clk
0:00:46.5]} 32. Rc2 {[%clk 0:00:09.9]} 32... Rxc2 {[%clk 0:00:46.3]} 33. Rxc2
{[%clk 0:00:08.9]} 33... Be7 {[%clk 0:00:44.2]} 34. Kf3 {[%clk 0:00:08.7]} 34...
Rc4 {[%clk 0:00:43.1]} 35. Ra2 {[%clk 0:00:08]} 35... Ra4 {[%clk 0:00:42.5]} 36.
Rc2 {[%clk 0:00:05]} 36... Bf6 {[%clk 0:00:42.3]} 37. Rc6 {[%clk 0:00:02.6]}
37... Be5 {[%clk 0:00:42.1]} 0-1

[Event "Early-Titled-Tuesday-Blitz-October-03-2023"]
[Site "Chess.com"]
[Date "2023.10.03"]
[Round "7"]
[White "RobertoJBM"]
[Black "SharapovEvgeny"]
[Result "1/2-1/2"]
[WhiteElo "2795"]
[BlackElo "2590"]
[TimeControl "180+1"]
[EndTime "9:19:13 PDT"]
[Termination "Game drawn by repetition"]

1. d4 {[%clk 0:02:58.9]} 1... Nf6 {[%clk 0:02:58]} 2. c4 {[%clk 0:02:57.4]} 2...
e6 {[%clk 0:02:58.2]} 3. Nf3 {[%clk 0:02:57]} 3... Bb4+ {[%clk 0:02:58]} 4. Bd2
{[%clk 0:02:56.2]} 4... c5 {[%clk 0:02:57.6]} 5. Bxb4 {[%clk 0:02:55.3]} 5...
cxb4 {[%clk 0:02:57.7]} 6. Nbd2 {[%clk 0:02:53.6]} 6... O-O {[%clk 0:02:57.5]}
7. e4 {[%clk 0:02:42.5]} 7... d6 {[%clk 0:02:57.6]} 8. Bd3 {[%clk 0:02:42]} 8...
Nbd7 {[%clk 0:02:55.9]} 9. O-O {[%clk 0:02:42]} 9... e5 {[%clk 0:02:56]} 10. Re1
{[%clk 0:02:40.7]} 10... Qc7 {[%clk 0:02:55.8]} 11. a3 {[%clk 0:02:38.6]} 11...
bxa3 {[%clk 0:02:55.6]} 12. Rxa3 {[%clk 0:02:38]} 12... a5 {[%clk 0:02:55.3]}
13. Nf1 {[%clk 0:02:30.6]} 13... b6 {[%clk 0:02:54.8]} 14. Ne3 {[%clk 0:02:24]}
14... Bb7 {[%clk 0:02:54.8]} 15. d5 {[%clk 0:02:15.1]} 15... Nc5 {[%clk
0:02:51.3]} 16. Nd2 {[%clk 0:02:09.3]} 16... Nxd3 {[%clk 0:02:46.9]} 17. Rxd3
{[%clk 0:02:08.3]} 17... Ba6 {[%clk 0:02:47.3]} 18. Rc3 {[%clk 0:02:07]} 18...
Qb7 {[%clk 0:02:46.2]} 19. Qb3 {[%clk 0:01:58.7]} 19... Nd7 {[%clk 0:02:40.5]}
20. Qa3 {[%clk 0:01:56.4]} 20... Nc5 {[%clk 0:02:39.2]} 21. f3 {[%clk
0:01:55.6]} 21... b5 {[%clk 0:02:38.3]} 22. cxb5 {[%clk 0:01:51.4]} 22... Bxb5
{[%clk 0:02:38.1]} 23. Nb3 {[%clk 0:01:46.4]} 23... Nxb3 {[%clk 0:02:25.2]} 24.
Qxb3 {[%clk 0:01:32.5]} 24... Rfc8 {[%clk 0:02:19.3]} 25. Rec1 {[%clk
0:01:30.7]} 25... Rxc3 {[%clk 0:02:14.4]} 26. Qxc3 {[%clk 0:01:24.3]} 26... h6
{[%clk 0:02:03.8]} 27. Qc7 {[%clk 0:01:21.1]} 27... Qxc7 {[%clk 0:02:01.1]} 28.
Rxc7 {[%clk 0:01:22]} 28... Rb8 {[%clk 0:02:00.8]} 29. b3 {[%clk 0:01:15.2]}
29... g6 {[%clk 0:01:53.7]} 30. Ng4 {[%clk 0:01:09.1]} 30... Kg7 {[%clk
0:01:50.7]} 31. Ne3 {[%clk 0:01:05.4]} 31... h5 {[%clk 0:01:43.2]} 32. h4 {[%clk
0:01:04.5]} 32... Bd3 {[%clk 0:01:38.1]} 33. Rc3 {[%clk 0:01:03.5]} 33... Bb5
{[%clk 0:01:34.6]} 34. Kf2 {[%clk 0:01:02.5]} 34... Rb7 {[%clk 0:01:31.8]} 35.
g4 {[%clk 0:00:59.9]} 35... hxg4 {[%clk 0:01:28.3]} 36. fxg4 {[%clk 0:01:00.8]}
36... Kf6 {[%clk 0:01:21.2]} 37. g5+ {[%clk 0:00:42.6]} 37... Ke7 {[%clk
0:01:20.8]} 38. Ng4 {[%clk 0:00:42.9]} 38... Kd8 {[%clk 0:01:08.4]} 39. Ke3
{[%clk 0:00:34.4]} 39... Rc7 {[%clk 0:01:07.8]} 40. Kd2 {[%clk 0:00:29.4]} 40...
Rxc3 {[%clk 0:01:07]} 41. Kxc3 {[%clk 0:00:30.3]} 41... Be2 {[%clk 0:01:05.6]}
42. Nf6 {[%clk 0:00:29.1]} 42... Ke7 {[%clk 0:00:57.1]} 43. Kb2 {[%clk
0:00:24.5]} 43... Bb5 {[%clk 0:00:51.5]} 44. Kc3 {[%clk 0:00:19.7]} 44... Kd8
{[%clk 0:00:50]} 45. Kc2 {[%clk 0:00:18]} 45... Ke7 {[%clk 0:00:50]} 46. Kc3
{[%clk 0:00:18.5]} 46... Kd8 {[%clk 0:00:50.4]} 47. Kd2 {[%clk 0:00:18.7]} 47...
Ke7 {[%clk 0:00:51]} 48. Kc1 {[%clk 0:00:18.9]} 48... Kd8 {[%clk 0:00:51.2]} 49.
Kb2 {[%clk 0:00:19.4]} 49... Ke7 {[%clk 0:00:51.5]} 50. Kc3 {[%clk 0:00:18.6]}
1/2-1/2

[Event "Early-Titled-Tuesday-Blitz-October-03-2023"]
[Site "Chess.com"]
[Date "2023.10.03"]
[Round "7"]
[White "borocotoajua"]
[Black "Flaccidmoves"]
[Result "1-0"]
[WhiteElo "2604"]
[BlackElo "2460"]
[TimeControl "180+1"]
[EndTime "9:19:13 PDT"]
[Termination "borocotoajua won on time"]

1. d4 {[%clk 0:03:00]} 1... Nf6 {[%clk 0:02:59]} 2. Nf3 {[%clk 0:03:00.2]} 2...
g6 {[%clk 0:02:59.6]} 3. c4 {[%clk 0:02:59.7]} 3... Bg7 {[%clk 0:02:59.9]} 4. g3
{[%clk 0:03:00.1]} 4... O-O {[%clk 0:03:00.4]} 5. Bg2 {[%clk 0:03:00.5]} 5... d6
{[%clk 0:03:01]} 6. O-O {[%clk 0:02:59.2]} 6... Nc6 {[%clk 0:03:01.5]} 7. Nc3
{[%clk 0:02:59]} 7... a6 {[%clk 0:03:01.4]} 8. b3 {[%clk 0:02:59.5]} 8... Rb8
{[%clk 0:02:47.7]} 9. Nd5 {[%clk 0:02:59.2]} 9... Ne4 {[%clk 0:02:32.4]} 10. Bb2
{[%clk 0:02:55.2]} 10... b5 {[%clk 0:02:10.3]} 11. Rc1 {[%clk 0:02:52.5]} 11...
bxc4 {[%clk 0:02:06]} 12. Rxc4 {[%clk 0:02:49.9]} 12... Be6 {[%clk 0:02:05.8]}
13. Rxc6 {[%clk 0:02:32.6]} 13... Bxd5 {[%clk 0:02:05]} 14. Rxa6 {[%clk
0:02:29.7]} 14... Ra8 {[%clk 0:01:30.3]} 15. Rxa8 {[%clk 0:02:15.8]} 15... Qxa8
{[%clk 0:01:29.9]} 16. a3 {[%clk 0:01:36.2]} 16... Ng5 {[%clk 0:01:26.8]} 17.
Qd3 {[%clk 0:01:23.3]} 17... Nxf3+ {[%clk 0:01:18]} 18. Bxf3 {[%clk 0:01:18.2]}
18... Bxf3 {[%clk 0:01:17.4]} 19. exf3 {[%clk 0:01:13.1]} 19... c5 {[%clk
0:00:59.9]} 20. Re1 {[%clk 0:01:09.4]} 20... e6 {[%clk 0:00:56]} 21. Rd1 {[%clk
0:00:48.1]} 21... Rb8 {[%clk 0:00:50.6]} 22. Kg2 {[%clk 0:00:39.4]} 22... Qd5
{[%clk 0:00:48.2]} 23. b4 {[%clk 0:00:19.8]} 23... cxb4 {[%clk 0:00:45.7]} 24.
axb4 {[%clk 0:00:20.7]} 24... Rxb4 {[%clk 0:00:45.5]} 25. Bc3 {[%clk 0:00:20.6]}
25... Rb3 {[%clk 0:00:41.2]} 26. Qd2 {[%clk 0:00:20.6]} 26... Qc6 {[%clk
0:00:31.8]} 27. Rc1 {[%clk 0:00:18.5]} 27... Bf6 {[%clk 0:00:17]} 28. d5 {[%clk
0:00:17.8]} 1-0

[Event "Early-Titled-Tuesday-Blitz-October-03-2023"]
[Site "Chess.com"]
[Date "2023.10.03"]
[Round "7"]
[White "nitpicker"]
[Black "taleslascando"]
[Result "1-0"]
[WhiteElo "2245"]
[BlackElo "2009"]
[TimeControl "180+1"]
[EndTime "9:19:13 PDT"]
[Termination "nitpicker won by resignation"]

1. d4 {[%clk 0:03:00.9]} 1... Nf6 {[%clk 0:02:56.8]} 2. c4 {[%clk 0:03:00.6]}
2... g6 {[%clk 0:02:56.8]} 3. Nc3 {[%clk 0:02:59.8]} 3... Bg7 {[%clk 0:02:57.3]}
4. e4 {[%clk 0:02:59.3]} 4... d6 {[%clk 0:02:57.6]} 5. Be2 {[%clk 0:02:58.9]}
5... O-O {[%clk 0:02:58.2]} 6. Nf3 {[%clk 0:02:58.7]} 6... Nc6 {[%clk
0:02:58.6]} 7. O-O {[%clk 0:02:55.4]} 7... e5 {[%clk 0:02:58.5]} 8. d5 {[%clk
0:02:55.9]} 8... Ne7 {[%clk 0:02:58.4]} 9. a4 {[%clk 0:02:56.5]} 9... a5 {[%clk
0:02:56.1]} 10. Ne1 {[%clk 0:02:55.1]} 10... Nd7 {[%clk 0:02:52.5]} 11. Nd3
{[%clk 0:02:54.5]} 11... f5 {[%clk 0:02:46]} 12. f3 {[%clk 0:02:54.7]} 12... f4
{[%clk 0:02:45.5]} 13. b3 {[%clk 0:02:54]} 13... g5 {[%clk 0:02:38.7]} 14. Ba3
{[%clk 0:02:52.8]} 14... b6 {[%clk 0:02:32.7]} 15. b4 {[%clk 0:02:52.7]} 15...
axb4 {[%clk 0:02:32.4]} 16. Bxb4 {[%clk 0:02:52.8]} 16... Ng6 {[%clk 0:02:22.2]}
17. a5 {[%clk 0:02:52.1]} 17... Nc5 {[%clk 0:01:57.3]} 18. axb6 {[%clk
0:02:48.3]} 18... Rxa1 {[%clk 0:01:56.2]} 19. Qxa1 {[%clk 0:02:49.2]} 19... cxb6
{[%clk 0:01:56]} 20. Nb5 {[%clk 0:02:41.3]} 20... g4 {[%clk 0:01:42.9]} 21. Bxc5
{[%clk 0:02:29.3]} 21... g3 {[%clk 0:01:16.5]} 22. h3 {[%clk 0:01:05.1]} 22...
bxc5 {[%clk 0:01:12.4]} 23. Rb1 {[%clk 0:01:01.1]} 23... Qh4 {[%clk 0:01:11.8]}
24. Bf1 {[%clk 0:01:00]} 24... Bxh3 {[%clk 0:00:27.3]} 25. gxh3 {[%clk
0:00:54.3]} 25... g2 {[%clk 0:00:27.3]} 26. Bxg2 {[%clk 0:00:52.9]} 26... Qg3
{[%clk 0:00:26.4]} 27. Qb2 {[%clk 0:00:49.8]} 27... Nh4 {[%clk 0:00:20.8]} 28.
Qf2 {[%clk 0:00:48.2]} 28... Qg5 {[%clk 0:00:14.4]} 29. Kh2 {[%clk 0:00:45.2]}
29... Rf6 {[%clk 0:00:12.1]} 30. Rg1 {[%clk 0:00:41.5]} 30... Rg6 {[%clk
0:00:10.3]} 31. Bh1 {[%clk 0:00:41.2]} 31... Qg3+ {[%clk 0:00:02.6]} 32. Rxg3
{[%clk 0:00:38.6]} 32... fxg3+ {[%clk 0:00:02.7]} 33. Qxg3 {[%clk 0:00:38.2]}
33... Rxg3 {[%clk 0:00:02.4]} 34. Kxg3 {[%clk 0:00:38.9]} 34... Ng6 {[%clk
0:00:02.1]} 35. Nxd6 {[%clk 0:00:38.3]} 35... Bh6 {[%clk 0:00:02.2]} 1-0

[Event "Early-Titled-Tuesday-Blitz-October-03-2023"]
[Site "Chess.com"]
[Date "2023.10.03"]
[Round "7"]
[White "Vision_64"]
[Black "CristianS27"]
[Result "0-1"]
[WhiteElo "2347"]
[BlackElo "2502"]
[TimeControl "180+1"]
[EndTime "9:19:14 PDT"]
[Termination "CristianS27 won by resignation"]

1. e4 {[%clk 0:02:53.9]} 1... e5 {[%clk 0:02:57.8]} 2. Nf3 {[%clk 0:02:49.3]}
2... Nc6 {[%clk 0:02:57.8]} 3. d4 {[%clk 0:02:41.7]} 3... exd4 {[%clk
0:02:58.7]} 4. Nxd4 {[%clk 0:02:41.3]} 4... Bb4+ {[%clk 0:02:58.7]} 5. c3 {[%clk
0:02:39.4]} 5... Bc5 {[%clk 0:02:58.9]} 6. Nb3 {[%clk 0:02:35.3]} 6... Bb6
{[%clk 0:02:55.7]} 7. Qe2 {[%clk 0:02:33.9]} 7... d6 {[%clk 0:02:43.1]} 8. Be3
{[%clk 0:02:30.6]} 8... Nf6 {[%clk 0:02:41.7]} 9. N1d2 {[%clk 0:02:26.5]} 9...
O-O {[%clk 0:02:38.6]} 10. O-O-O {[%clk 0:02:20.8]} 10... Re8 {[%clk 0:02:35.9]}
11. f3 {[%clk 0:02:20.6]} 11... d5 {[%clk 0:02:32.7]} 12. Nc5 {[%clk 0:02:07.1]}
12... Qe7 {[%clk 0:02:26.7]} 13. Qf2 {[%clk 0:01:58.9]} 13... dxe4 {[%clk
0:02:24.6]} 14. Ndxe4 {[%clk 0:01:54.3]} 14... Nxe4 {[%clk 0:02:17.6]} 15. fxe4
{[%clk 0:01:54.2]} 15... Bg4 {[%clk 0:02:05.5]} 16. Re1 {[%clk 0:01:52.4]} 16...
Rad8 {[%clk 0:01:42.1]} 17. Nxb7 {[%clk 0:01:47.5]} 17... Rb8 {[%clk 0:01:38.8]}
18. Nc5 {[%clk 0:01:39.8]} 18... Ne5 {[%clk 0:01:25]} 19. h3 {[%clk 0:01:31]}
19... Be6 {[%clk 0:01:24.5]} 20. Nxe6 {[%clk 0:01:20.1]} 20... Qxe6 {[%clk
0:01:25.4]} 21. b3 {[%clk 0:01:18.3]} 21... Red8 {[%clk 0:01:19.5]} 22. Bd4
{[%clk 0:01:12.7]} 22... c5 {[%clk 0:01:09.7]} 23. Bxe5 {[%clk 0:01:10.3]} 23...
Qxe5 {[%clk 0:01:10.6]} 24. Qc2 {[%clk 0:01:08.9]} 24... Ba5 {[%clk 0:01:05.7]}
25. Kb2 {[%clk 0:00:47.4]} 25... Bxc3+ {[%clk 0:01:05.6]} 26. Kb1 {[%clk
0:00:32.3]} 26... Rd2 {[%clk 0:00:56.7]} 27. Qc1 {[%clk 0:00:29.2]} 27... Rb2+
{[%clk 0:00:51.1]} 28. Qxb2 {[%clk 0:00:28.4]} 28... Bxb2 {[%clk 0:00:50.9]} 29.
Bc4 {[%clk 0:00:27.7]} 29... Ba3 {[%clk 0:00:41.4]} 30. Re2 {[%clk 0:00:27.1]}
30... Rd8 {[%clk 0:00:41.6]} 31. Rf1 {[%clk 0:00:26.3]} 31... Qc3 {[%clk
0:00:37.8]} 32. Bxf7+ {[%clk 0:00:22.4]} 32... Kh8 {[%clk 0:00:37.9]} 33. Bc4
{[%clk 0:00:22.4]} 33... h6 {[%clk 0:00:30.5]} 34. Rc2 {[%clk 0:00:20.8]} 34...
Qe5 {[%clk 0:00:29.3]} 35. Re1 {[%clk 0:00:20.3]} 35... a5 {[%clk 0:00:27.4]}
36. Bd5 {[%clk 0:00:20.1]} 36... Rxd5 {[%clk 0:00:26.6]} 0-1

[Event "Early-Titled-Tuesday-Blitz-October-03-2023"]
[Site "Chess.com"]
[Date "2023.10.03"]
[Round "7"]
[White "invisible_s0ul"]
[Black "Elbebiber"]
[Result "1-0"]
[WhiteElo "2283"]
[BlackElo "2140"]
[TimeControl "180+1"]
[EndTime "9:19:14 PDT"]
[Termination "invisible_s0ul won by resignation"]

1. d4 {[%clk 0:03:00.9]} 1... Nf6 {[%clk 0:02:59.2]} 2. c4 {[%clk 0:03:01.2]}
2... e6 {[%clk 0:02:59.3]} 3. Nc3 {[%clk 0:03:00.7]} 3... d5 {[%clk 0:02:59.2]}
4. Nf3 {[%clk 0:02:56.8]} 4... Be7 {[%clk 0:02:58.1]} 5. Bg5 {[%clk 0:02:48.5]}
5... O-O {[%clk 0:02:57.6]} 6. e3 {[%clk 0:02:45.1]} 6... h6 {[%clk 0:02:57.6]}
7. Bh4 {[%clk 0:02:43.5]} 7... c5 {[%clk 0:02:45]} 8. cxd5 {[%clk 0:02:17.7]}
8... Nxd5 {[%clk 0:02:31.3]} 9. Bxe7 {[%clk 0:02:16]} 9... Qxe7 {[%clk
0:02:26.8]} 10. Nxd5 {[%clk 0:02:06.4]} 10... exd5 {[%clk 0:02:26.4]} 11. dxc5
{[%clk 0:02:06.9]} 11... Qxc5 {[%clk 0:02:25.1]} 12. Be2 {[%clk 0:02:02.9]}
12... Nc6 {[%clk 0:02:18.4]} 13. O-O {[%clk 0:02:01.9]} 13... Be6 {[%clk
0:02:17.8]} 14. Rc1 {[%clk 0:01:58.4]} 14... Qb4 {[%clk 0:02:12.6]} 15. b3
{[%clk 0:01:53.8]} 15... Rfd8 {[%clk 0:02:10.6]} 16. Qd3 {[%clk 0:01:49.6]}
16... Rac8 {[%clk 0:01:59.7]} 17. Rfd1 {[%clk 0:01:49.2]} 17... Qe7 {[%clk
0:01:47.3]} 18. h3 {[%clk 0:01:48.2]} 18... Qf6 {[%clk 0:01:41.7]} 19. a3 {[%clk
0:01:32.4]} 19... Ne5 {[%clk 0:01:30.7]} 20. Nxe5 {[%clk 0:01:31.4]} 20... Qxe5
{[%clk 0:01:31.3]} 21. b4 {[%clk 0:01:25.6]} 21... Qb2 {[%clk 0:01:23]} 22. Rxc8
{[%clk 0:01:25.1]} 22... Rxc8 {[%clk 0:01:22.9]} 23. Bf3 {[%clk 0:01:24.9]}
23... Rc2 {[%clk 0:01:07.7]} 24. Bxd5 {[%clk 0:01:23.5]} 24... Rxf2 {[%clk
0:00:58.7]} 25. Bxb7 {[%clk 0:01:07.1]} 25... g6 {[%clk 0:00:41]} 26. Be4 {[%clk
0:01:00.4]} 26... Bf5 {[%clk 0:00:29.4]} 27. Qd8+ {[%clk 0:00:41.3]} 27... Kh7
{[%clk 0:00:29.3]} 28. Qd5 {[%clk 0:00:41.9]} 28... Be6 {[%clk 0:00:22.7]} 29.
Qd4 {[%clk 0:00:33.9]} 29... Qe2 {[%clk 0:00:21]} 30. Bf3 {[%clk 0:00:29.7]}
30... Qa2 {[%clk 0:00:17.3]} 31. e4 {[%clk 0:00:28]} 31... Bxh3 {[%clk
0:00:12.8]} 32. Qxf2 {[%clk 0:00:27.3]} 32... Be6 {[%clk 0:00:08.1]} 33. Qxa2
{[%clk 0:00:26.8]} 33... Bxa2 {[%clk 0:00:09]} 34. Rd7 {[%clk 0:00:26.8]} 1-0

[Event "Early-Titled-Tuesday-Blitz-October-03-2023"]
[Site "Chess.com"]
[Date "2023.10.03"]
[Round "7"]
[White "remi04"]
[Black "BashirovKemal"]
[Result "1-0"]
[WhiteElo "2862"]
[BlackElo "2662"]
[TimeControl "180+1"]
[EndTime "9:19:24 PDT"]
[Termination "remi04 won by resignation"]

1. e4 {[%clk 0:03:00.9]} 1... c5 {[%clk 0:02:59.1]} 2. Nf3 {[%clk 0:03:00.8]}
2... d6 {[%clk 0:02:59.3]} 3. d4 {[%clk 0:03:01.1]} 3... cxd4 {[%clk 0:03:00.2]}
4. Nxd4 {[%clk 0:03:02]} 4... Nf6 {[%clk 0:02:59]} 5. Nc3 {[%clk 0:03:02.4]}
5... a6 {[%clk 0:02:59.4]} 6. h3 {[%clk 0:03:02.6]} 6... e5 {[%clk 0:02:57.2]}
7. Nb3 {[%clk 0:03:01.9]} 7... h5 {[%clk 0:02:55.1]} 8. Bg5 {[%clk 0:02:50.8]}
8... Be6 {[%clk 0:02:55.2]} 9. Qd3 {[%clk 0:02:43.8]} 9... Nbd7 {[%clk
0:02:54.1]} 10. O-O-O {[%clk 0:02:42.8]} 10... Be7 {[%clk 0:02:54.4]} 11. Kb1
{[%clk 0:02:37.4]} 11... Rc8 {[%clk 0:02:53.6]} 12. Nd5 {[%clk 0:02:31.5]} 12...
Bxd5 {[%clk 0:02:33]} 13. exd5 {[%clk 0:02:32.4]} 13... b5 {[%clk 0:02:23]} 14.
Qd2 {[%clk 0:02:06.3]} 14... Ne4 {[%clk 0:02:14.2]} 15. Qe3 {[%clk 0:01:55.8]}
15... Nxg5 {[%clk 0:02:13.1]} 16. h4 {[%clk 0:01:50.5]} 16... Nh7 {[%clk
0:02:12]} 17. Bd3 {[%clk 0:01:47.9]} 17... Nhf6 {[%clk 0:02:10.8]} 18. Bf5
{[%clk 0:01:47.4]} 18... O-O {[%clk 0:01:54.5]} 19. Qe2 {[%clk 0:01:43.2]} 19...
Rc4 {[%clk 0:01:51]} 20. f3 {[%clk 0:01:39.8]} 20... Nb6 {[%clk 0:01:41.6]} 21.
Na5 {[%clk 0:01:35.2]} 21... Rc7 {[%clk 0:01:30.3]} 22. g4 {[%clk 0:01:27.4]}
22... hxg4 {[%clk 0:01:24.9]} 23. fxg4 {[%clk 0:01:15.7]} 23... Nfxd5 {[%clk
0:01:22.7]} 24. g5 {[%clk 0:01:12]} 24... Nf4 {[%clk 0:01:13.3]} 25. Qf2 {[%clk
0:01:07.8]} 25... Nc4 {[%clk 0:01:08.3]} 26. Nb3 {[%clk 0:01:07.9]} 26... a5
{[%clk 0:00:57.9]} 27. Nc1 {[%clk 0:00:52.1]} 27... a4 {[%clk 0:00:54.8]} 28.
Rdg1 {[%clk 0:00:49.2]} 28... d5 {[%clk 0:00:53.9]} 29. Qh2 {[%clk 0:00:34.1]}
29... Bc5 {[%clk 0:00:50.8]} 30. Rg3 {[%clk 0:00:26.9]} 30... Be3 {[%clk
0:00:37.7]} 31. h5 {[%clk 0:00:23.1]} 31... Bxc1 {[%clk 0:00:34.8]} 32. Rxc1
{[%clk 0:00:19.2]} 32... b4 {[%clk 0:00:27.4]} 33. g6 {[%clk 0:00:15.8]} 33...
f6 {[%clk 0:00:17.3]} 34. h6 {[%clk 0:00:14.9]} 34... Nd6 {[%clk 0:00:16.8]} 35.
hxg7 {[%clk 0:00:12.6]} 35... Rxg7 {[%clk 0:00:17.7]} 36. Rh1 {[%clk 0:00:12.2]}
1-0

[Event "Early-Titled-Tuesday-Blitz-October-03-2023"]
[Site "Chess.com"]
[Date "2023.10.03"]
[Round "7"]
[White "MMAHDI2013"]
[Black "Witik"]
[Result "0-1"]
[WhiteElo "2427"]
[BlackElo "2828"]
[TimeControl "180+1"]
[EndTime "9:19:24 PDT"]
[Termination "Witik won on time"]

1. c4 {[%clk 0:02:59.2]} 1... e5 {[%clk 0:02:59.6]} 2. Nc3 {[%clk 0:02:59.1]}
2... Bb4 {[%clk 0:02:59.8]} 3. Nd5 {[%clk 0:02:44.8]} 3... a5 {[%clk 0:02:59.4]}
4. Nf3 {[%clk 0:02:33.7]} 4... d6 {[%clk 0:02:59.3]} 5. a3 {[%clk 0:02:31.1]}
5... Bc5 {[%clk 0:02:58.7]} 6. e3 {[%clk 0:02:31.5]} 6... c6 {[%clk 0:02:58.6]}
7. Nc3 {[%clk 0:02:30.8]} 7... Ba7 {[%clk 0:02:59.3]} 8. Be2 {[%clk 0:02:25]}
8... f5 {[%clk 0:02:58.7]} 9. d4 {[%clk 0:02:15.3]} 9... e4 {[%clk 0:02:58.9]}
10. Nd2 {[%clk 0:02:13.8]} 10... Nf6 {[%clk 0:02:59.6]} 11. g4 {[%clk 0:02:12]}
11... O-O {[%clk 0:02:50.1]} 12. Qc2 {[%clk 0:01:48]} 12... Na6 {[%clk
0:02:41.2]} 13. gxf5 {[%clk 0:01:46.2]} 13... Bxf5 {[%clk 0:02:41.1]} 14. Ndxe4
{[%clk 0:01:38.5]} 14... Nxe4 {[%clk 0:02:41.2]} 15. Nxe4 {[%clk 0:01:39.4]}
15... d5 {[%clk 0:02:41.8]} 16. Bd3 {[%clk 0:01:17.1]} 16... dxe4 {[%clk
0:02:39.7]} 17. Bxe4 {[%clk 0:01:18]} 17... Qg5 {[%clk 0:02:15.7]} 18. Bxf5
{[%clk 0:01:03.8]} 18... Rxf5 {[%clk 0:02:08.4]} 19. Bd2 {[%clk 0:00:59.4]}
19... Qg2 {[%clk 0:02:04.6]} 20. O-O-O {[%clk 0:00:48.1]} 20... Rxf2 {[%clk
0:02:02.4]} 21. c5 {[%clk 0:00:36]} 21... Kh8 {[%clk 0:01:38.6]} 22. Qc3 {[%clk
0:00:16.6]} 22... b6 {[%clk 0:01:24.1]} 23. d5 {[%clk 0:00:15.5]} 23... Qxd5
{[%clk 0:01:20.3]} 24. Be1 {[%clk 0:00:15.9]} 24... Qxh1 {[%clk 0:01:14.3]} 25.
Bxf2 {[%clk 0:00:16.1]} 25... Qf3 {[%clk 0:00:56.9]} 26. Rg1 {[%clk 0:00:13.8]}
26... Rg8 {[%clk 0:00:55.7]} 27. Bh4 {[%clk 0:00:10.2]} 27... Nxc5 {[%clk
0:00:50.8]} 28. Rxg7 {[%clk 0:00:01.2]} 28... Rxg7 {[%clk 0:00:47.6]} 29. Bf6
{[%clk 0:00:01.7]} 29... Qf1+ {[%clk 0:00:30.5]} 30. Kc2 {[%clk 0:00:01.6]}
30... Qe2+ {[%clk 0:00:30.7]} 31. Kb1 {[%clk 0:00:01.6]} 31... Qd3+ {[%clk
0:00:27.9]} 0-1